bitfinex/quotes_ETHUSD_20260312
["timestamp","ask_amount","ask_price","bid_price","bid_amount"]
[1773321876223,0.001,2056.2,2055.6,1.69378549]
[1773321876732,0.001,2056.2,2055.7,0.47759557]
[1773321876941,1.7078384,2056.7,2055.7,0.47759557]
[1773321877140,1.7078384,2056.7,2055.8,0.47759557]
[1773321877640,1.7078384,2056.7,2056.0,0.47759557]
[1773321877843,1.70780208,2056.7,2056.0,0.47759557]
[1773321878647,0.49223984,2056.6,2055.9,1.21601245]
[1773321879145,1.21556224,2056.7,2056.0,0.47759557]
[1773321879318,1.70780208,2056.7,2056.0,0.47759557]
[1773321879719,1.70780208,2056.7,2055.9,1.21597225]
[1773321879720,0.49223984,2056.6,2055.9,1.21597225]
[1773321879948,0.49223984,2056.5,2055.8,1.69363178]
[1773321880149,0.49223984,2056.2,2055.5,0.47759557]
[1773321881038,0.49223984,2056.2,2055.4,1.21630826]
[1773321881415,0.49223984,2056.2,2055.3,6.21632309]
[1773321881618,1.21589416,2056.1,2055.3,6.69391866]
[1773321881821,1.708134,2056.1,2055.3,5.47759557]
[1773321882149,0.49223984,2056.0,2055.3,6.69396038]
[1773321883059,1.21589416,2056.1,2055.4,0.47021469]
[1773321883949,5.31790235,2056.3,2055.5,1.68646377]
[1773321884372,5.31790235,2056.3,2055.6,0.47021469]
[1773321885068,0.001,2056.0,2055.6,0.47021469]
[1773321885856,0.4547619,2056.6,2055.6,0.47021469]
[1773321885857,1.67041957,2056.6,2055.8,0.47021469]
[1773321886173,4.86273803,2056.5,2055.8,0.47021469]
[1773321886370,1.21565767,2056.5,2055.8,0.47021469]
[1773321888280,1.21565767,2056.5,2055.9,0.47021469]
[1773321888578,0.4547619,2056.4,2055.6,3.76735632]
[1773321890067,0.4547619,2056.2,2055.6,1.68635632]
[1773321890257,0.4547619,2056.2,2055.6,1.68639365]
[1773321890667,0.4547619,2056.2,2055.6,0.47021469]
[1773321890868,0.4547619,2056.2,2055.6,1.68639854]
[1773321891174,0.4547619,2056.2,2055.6,0.47021469]
[1773321891373,0.4547619,2056.2,2055.5,1.2173145]
[1773321892147,1.21589416,2056.1,2055.5,0.46129116]
[1773321892781,1.21589416,2056.1,2055.5,0.0011]
[1773321892782,0.49511559,2056.0,2055.5,0.0011]
[1773321894066,1.21589416,2056.1,2055.5,0.0011]
[1773321894259,1.21589416,2056.1,2055.5,1.21734908]
[1773321894765,1.21589416,2056.1,2055.5,1.67754024]
[1773321895262,1.21589416,2056.1,2055.6,0.46019116]
[1773321895457,5.35869226,2056.2,2055.6,0.46019116]
[1773321895458,1.71099041,2056.2,2055.6,0.46019116]
[1773321895649,1.21579573,2056.3,2055.6,0.46019116]
[1773321896378,1.71087792,2056.4,2055.8,0.46019116]
[1773321896754,1.21569653,2056.5,2055.8,0.46019116]
[1773321896970,1.21563745,2056.6,2055.8,0.46019116]
[1773321897384,1.21557751,2056.7,2055.8,0.46129116]
[1773321897693,0.001,2056.3,2055.8,0.46129116]
[1773321898393,0.001,2056.3,2056.0,0.46019116]
[1773321898997,0.001,2056.3,2055.8,1.67731328]
[1773321899298,0.001,2056.3,2055.8,1.67734203]
[1773321899687,1.7106428,2056.8,2055.9,0.46019116]
[1773321900273,1.21559856,2056.6,2056.0,1.2159533]
[1773321900473,1.21558852,2056.7,2056.1,0.46019116]
[1773321900669,4.86134187,2057.1,2056.1,0.46019116]
[1773321901200,5.35645746,2057.1,2056.1,0.46019116]
[1773321901908,0.49511559,2056.9,2056.0,1.2159533]
[1773321902283,5.35750983,2056.7,2055.9,1.67619513]
[1773321902483,1.71071415,2056.6,2055.9,1.67619513]
[1773321902680,1.21559856,2056.6,2056.0,0.46019116]
[1773321903082,1.21558544,2056.7,2056.0,0.46019116]
[1773321903405,1.21542126,2056.9,2056.0,0.46019116]
[1773321903904,1.71052509,2057.0,2056.0,0.46019116]
[1773321904597,1.71052509,2057.0,2056.2,0.46019116]
[1773321904797,1.2154095,2057.0,2056.2,0.46019116]
[1773321906085,1.71052509,2057.0,2056.2,0.46019116]
[1773321906497,1.71052509,2057.0,2056.3,1.2157759]
[1773321907979,1.71052509,2057.0,2056.4,0.46019116]
[1773321908377,1.21534915,2057.1,2056.4,0.46019116]
[1773321910296,4.8621167,2057.2,2056.5,1.67584883]
[1773321910612,0.001,2056.8,2056.6,0.46019116]
[1773321911112,0.001,2056.8,2056.2,1.67709284]
[1773321911113,0.49611559,2056.8,2056.2,1.67709284]
[1773321911282,0.001,2056.8,2056.2,1.67709284]
[1773321911482,0.49611559,2056.8,2056.2,0.46129116]
[1773321911911,0.49611559,2056.8,2056.2,0.0011]
[1773321911912,2.13945939,2056.7,2056.2,0.0011]
[1773321912084,0.49511559,2056.7,2056.2,0.0011]
[1773321912585,1.21559856,2056.6,2056.2,0.0011]
[1773321914418,0.001,2056.8,2056.2,0.0011]
[1773321914620,1.2165288,2056.8,2056.2,0.46129116]
[1773321914819,0.001,2056.8,2056.2,0.46129116]
[1773321915701,0.001,2056.8,2056.4,0.46019116]
[1773321915903,0.001,2056.8,2056.5,0.0373225]
[1773321916106,0.001,2056.8,2056.5,0.49751366]
[1773321916618,0.001,2056.8,2056.5,1.71312635]
[1773321917416,0.001,2056.8,2056.5,0.49751366]
[1773321917600,0.001,2056.8,2056.5,1.71314444]
[1773321918019,0.001,2056.8,2056.5,0.49751366]
[1773321918213,0.49611559,2056.8,2056.2,0.0011]
[1773321918696,1.21553945,2056.7,2056.2,0.0011]
[1773321919109,1.2528621,2056.7,2056.2,0.0011]
[1773321919396,1.21553945,2056.7,2056.2,0.0011]
[1773321919797,1.2528621,2056.7,2056.2,0.0011]
[1773321920809,0.46170353,2056.6,2056.2,0.0011]
[1773321921009,0.46170353,2056.5,2056.2,0.0011]
[1773321921940,1.67724298,2056.7,2056.2,0.0011]
[1773321922097,2.10399654,2056.6,2056.2,0.0011]
[1773321922298,2.10399654,2056.6,2056.0,0.0011]
[1773321922299,0.46170353,2056.5,2056.0,0.0011]
[1773321922515,1.64229301,2056.4,2056.0,0.0011]
[1773321922725,0.46170353,2056.3,2056.0,0.0011]
[1773321922905,1.67749911,2056.3,2056.0,0.0011]
[1773321923108,1.64229301,2056.6,2056.0,0.0011]
[1773321923109,4.86282652,2056.5,2056.0,0.0011]
[1773321923309,0.46170353,2056.4,2056.0,0.0011]
[1773321923896,4.86282652,2056.5,2056.0,0.49515953]
[1773321924099,0.03732265,2056.6,2056.0,0.49515953]
[1773321924839,0.49902618,2056.6,2056.0,0.0011]
[1773321925026,1.21565767,2056.5,2056.4,0.0011]
[1773321925827,1.21660649,2056.6,2056.4,0.0011]
[1773321926127,1.21660543,2056.6,2056.4,0.0011]
[1773321926521,1.25392808,2056.6,2056.4,0.0011]
[1773321927715,0.46170353,2056.5,2056.1,0.03278593]
[1773321928022,0.46170353,2056.5,2056.1,0.0011]
[1773321928529,0.49902618,2056.4,2056.1,0.0011]
[1773321928904,0.03732265,2056.4,2056.1,0.0011]
[1773321929105,0.03732265,2056.5,2056.1,0.0011]
[1773321929301,1.21571678,2056.4,2056.1,0.0011]
[1773321930008,1.67742031,2056.4,2056.1,0.0011]
[1773321932036,0.46170353,2056.1,2055.8,0.0011]
[1773321933945,1.2159533,2056.0,2055.8,0.0011]
[1773321935659,1.2157759,2056.3,2055.8,0.49515953]
[1773321936024,1.2157759,2056.3,2055.8,1.71119197]
[1773321936525,1.2157759,2056.3,2055.8,1.72857933]
[1773321936828,1.25309855,2056.3,2055.8,1.72857933]
[1773321937042,1.25309855,2056.3,2055.9,0.49405953]
[1773321937241,1.2157759,2056.3,2056.0,0.51144933]
[1773321937548,1.25309855,2056.3,2056.0,0.49405953]
[1773321937732,1.25309855,2056.3,2055.8,1.2171618]
[1773321937733,1.25309855,2056.3,2055.8,1.71122133]
[1773321937928,1.25309855,2056.3,2055.9,0.04864049]
[1773321938139,1.25309855,2056.3,2055.8,1.71123008]
[1773321939853,1.25309855,2056.3,2055.8,0.49515953]
[1773321940552,1.25309855,2056.3,2056.0,0.0011]
[1773321940765,0.001,2056.1,2056.0,0.0011]
[1773321946455,1.2157601,2056.4,2056.0,0.46046914]
[1773321946770,1.25308275,2056.4,2056.0,0.46046914]
[1773321947266,1.21567732,2056.5,2056.1,1.6752633]
[1773321949270,0.001,2056.6,2056.1,1.6752633]
[1773321949466,0.001,2056.6,2056.1,1.72389906]
[1773321949774,0.001,2056.6,2056.1,1.7238872]
[1773321949961,0.48714812,2056.6,2056.1,0.5080049]
[1773321950569,0.48714812,2056.6,2056.1,1.72389418]
[1773321951452,1.21664061,2056.6,2056.2,0.49448957]
[1773321951654,0.001,2056.6,2056.2,0.49448957]
[1773321952547,0.001,2056.8,2056.4,0.49448957]
[1773321953262,0.001,2057.2,2056.6,0.49448957]
[1773321953443,0.001,2057.2,2056.8,0.49448957]
[1773321955278,0.4917266,2057.1,2056.5,2.20951597]
[1773321955570,0.4917266,2057.1,2056.5,2.20953672]
[1773321955571,1.2527377,2057.0,2056.5,2.20953672]
[1773321955875,1.21541505,2057.0,2056.5,2.20953672]
[1773321956056,1.2527377,2057.0,2056.5,0.99387926]
[1773321956549,1.7444643,2057.0,2056.5,0.49938969]
[1773321958673,1.70714165,2057.0,2056.5,0.49938969]
[1773321959046,1.2153489,2057.1,2056.6,0.49448957]
[1773321959245,0.03732265,2057.0,2056.6,0.49448957]
[1773321960087,0.03732265,2057.0,2056.5,1.7636606]
[1773321960088,1.21542126,2056.9,2056.5,0.49938969]
[1773321960277,1.25273318,2057.0,2056.5,2.20953642]
[1773321960799,1.25273318,2057.0,2056.5,4.32416272]
[1773321960949,1.25273318,2057.0,2056.6,0.49448957]
[1773321961353,1.25273318,2057.0,2056.5,3.82967315]
[1773321961750,1.25264798,2057.1,2056.5,3.82967315]
[1773321961955,0.001,2057.2,2056.8,0.49448957]
[1773321962558,1.21493667,2057.8,2057.1,0.49448957]
[1773321962782,1.21493667,2057.8,2057.0,1.64229301]
[1773321962783,1.21493667,2057.8,2057.3,0.49448957]
[1773321963090,1.21482786,2058.0,2057.3,0.49448957]
[1773321963399,1.21482786,2058.0,2057.2,2.066]
[1773321963400,0.4917266,2057.9,2057.2,2.066]
[1773321963581,0.4917266,2057.9,2057.0,0.49448957]
[1773321963781,0.4917266,2057.8,2057.0,2.56048957]
[1773321963952,1.21494872,2057.7,2057.1,1.21530309]
[1773321964491,1.21494872,2057.7,2057.0,3.77583712]
[1773321964656,1.21494872,2057.7,2057.1,0.49448957]
[1773321964859,1.21593792,2057.8,2057.1,0.49448957]
[1773321966080,0.001,2057.8,2057.3,0.49448957]
[1773321966272,4.85863097,2058.2,2057.3,2.13678258]
[1773321966273,4.85873431,2058.2,2057.3,2.13678258]
[1773321966587,0.4917266,2058.6,2057.2,1.21524402]
[1773321966588,4.85790624,2058.6,2057.8,0.49448957]
[1773321966792,4.85790624,2058.6,2057.9,2.065]
[1773321966953,5.34963284,2058.6,2057.9,2.065]
[1773321967156,5.34963284,2058.6,2057.8,0.49448957]
[1773321967395,1.70614416,2058.6,2057.9,0.49448957]
[1773321967555,1.21441756,2058.6,2057.9,0.49448957]
[1773321968203,6.74161969,2059.0,2058.1,0.49448957]
[1773321968204,1.21424061,2058.9,2058.1,0.49448957]
[1773321968708,4.85796245,2059.0,2058.2,0.49448957]
[1773321968709,0.001,2059.0,2058.2,0.49448957]
[1773321968861,0.001,2059.0,2058.4,0.49448957]
[1773321969063,0.001,2059.0,2058.5,0.49448957]
[1773321969457,0.001,2059.0,2058.2,0.49448957]
[1773321969458,3.34920131,2059.0,2058.2,0.49448957]
[1773321969697,1.2151817,2059.0,2058.2,0.49448957]
[1773321970106,0.001,2059.0,2058.4,0.49448957]
[1773321970285,0.001,2059.0,2058.4,1.7089911]
[1773321970487,0.4927266,2059.0,2058.2,3.27962642]
[1773321970821,0.001,2059.0,2058.3,0.49448957]
[1773321971310,0.4917266,2058.9,2058.2,2.065]
[1773321971666,0.4917266,2058.9,2058.1,3.21805952]
[1773321972091,1.21429959,2058.8,2058.1,4.43272683]
[1773321972296,1.21429959,2058.8,2058.2,0.49448957]
[1773321972896,1.21429959,2058.8,2058.1,4.43272683]
[1773321973078,1.21429959,2058.8,2058.1,4.9272164]
[1773321973277,1.21429959,2058.8,2058.1,4.92724587]
[1773321973596,1.21429959,2058.8,2058.2,2.064]
[1773321974505,1.21429959,2058.8,2058.2,3.77313345]
[1773321974816,1.21429959,2058.8,2058.3,0.49448957]
[1773321975316,1.21427527,2058.9,2058.3,0.49448957]
[1773321976400,1.21427527,2058.9,2058.4,2.063]
[1773321976598,0.001,2059.0,2058.4,2.063]
[1773321976908,0.001,2058.6,2058.4,3.2775197]
[1773321977115,0.001,2058.6,2058.4,3.77200927]
[1773321978309,0.001,2058.6,2058.5,0.49448957]
[1773321978616,0.001,2059.0,2058.6,0.49448957]
[1773321978816,0.001,2059.0,2058.7,0.49448957]
[1773321979025,1.21400475,2059.3,2058.7,0.49448957]
[1773321979491,1.21400475,2059.3,2058.8,2.063]
[1773321980982,4.85601903,2059.4,2058.8,2.063]
[1773321981384,4.85601903,2059.4,2058.8,3.27729794]
[1773321981584,4.85601903,2059.4,2058.8,2.54440974]
[1773321982805,1.70565528,2059.5,2058.8,3.75870275]
[1773321983008,1.70565528,2059.5,2058.8,2.54440974]
[1773321984926,0.47062012,2059.2,2058.5,0.48140974]
[1773321985128,0.47062012,2059.2,2058.3,3.75899573]
[1773321985345,0.47062012,2059.2,2058.4,0.48140974]
[1773321985618,1.21412267,2059.1,2058.5,0.48140974]
[1773321985789,1.68474279,2059.1,2058.5,0.48140974]
[1773321987217,0.47062012,2059.0,2058.2,1.69605471]
[1773321987423,0.47062012,2059.0,2058.3,2.063]
[1773321988430,0.47062012,2059.0,2058.4,1.21453556]
[1773321988638,1.68484293,2059.0,2058.4,1.21453556]
[1773321988939,1.21422281,2059.0,2058.5,0.48140974]
[1773321989490,1.21422281,2059.0,2058.7,0.0011]
[1773321989897,0.001,2058.9,2058.7,0.0011]
[1773321993513,0.47162012,2058.9,2058.7,0.0011]
[1773321993714,1.21415719,2059.1,2058.7,0.0011]
[1773321994830,1.21415719,2059.1,2058.7,0.48250974]
[1773321995125,1.21415719,2059.1,2058.8,0.04857198]
[1773321995321,1.68461151,2059.4,2058.8,0.52998172]
[1773321998112,0.47062012,2059.3,2058.8,0.48140974]
[1773321998511,0.47062012,2059.0,2058.5,0.0011]
[1773321998726,0.47062012,2059.2,2058.5,1.74556146]
[1773321999038,0.47062012,2059.2,2058.6,0.48140974]
[1773321999039,1.21412267,2059.1,2058.6,0.48140974]
[1773321999205,1.21412267,2059.1,2058.5,0.0011]
[1773321999629,1.68474279,2059.1,2058.5,1.21557421]
[1773321999840,1.68474279,2059.1,2058.5,0.5310888]
[1773322000024,4.85649069,2059.4,2058.7,0.48140974]
[1773322000025,5.32641496,2059.4,2058.7,0.48140974]
[1773322000533,4.85579484,2059.4,2058.7,0.48140974]
[1773322000758,5.32641496,2059.4,2058.7,0.48140974]
[1773322001036,0.47062012,2059.1,2058.5,1.69698414]
[1773322001214,0.47062012,2059.1,2058.6,0.0485767]
[1773322002238,0.47062012,2059.1,2058.9,0.0011]
[1773322003240,1.21418164,2059.0,2058.9,0.0011]
[1773322007939,1.69339497,2059.0,2058.6,0.0011]
[1773322008362,1.21418164,2059.0,2058.6,0.47523086]
[1773322008515,1.21418164,2059.0,2058.6,0.52380756]
[1773322010023,4.8565775,2059.1,2058.6,0.52380756]
[1773322010720,0.48854175,2059.0,2058.6,0.0011]
[1773322011441,0.48854175,2058.9,2058.6,0.0011]
[1773322011628,4.8565775,2059.1,2058.2,0.0011]
[1773322011629,0.48854175,2058.7,2058.2,0.0011]
[1773322011820,0.48854175,2058.7,2058.2,0.04968614]
[1773322012122,1.21441756,2058.6,2058.2,0.04968614]
[1773322012440,1.21439841,2058.7,2058.3,0.45977746]
[1773322012937,1.70294016,2058.7,2058.2,0.04968614]
[1773322014540,1.70294016,2058.7,2058.2,0.5094636]
[1773322015042,1.70294016,2058.7,2058.2,1.72411217]
[1773322015248,4.85728082,2058.8,2058.4,0.0011]
[1773322015249,1.70284134,2058.8,2058.4,0.0011]
[1773322015424,1.70384134,2058.8,2058.4,0.0011]
[1773322016016,0.48954175,2058.8,2058.4,0.0011]
[1773322016535,1.21435857,2058.7,2058.4,0.0011]
[1773322017846,1.70290032,2058.7,2058.4,0.0011]
[1773322019648,2.35888829,2058.7,2058.4,0.0011]
[1773322020155,0.001,2058.8,2058.5,0.45977746]
[1773322020326,0.001,2058.8,2058.7,0.45977746]
[1773322020957,1.21530434,2058.8,2058.4,0.0011]
[1773322021253,0.001,2058.8,2058.4,2.0561]
[1773322021555,0.001,2058.8,2058.5,0.45977746]
[1773322024255,0.001,2058.8,2058.6,0.45977746]
[1773322025364,0.001,2058.8,2058.4,2.51587746]
[1773322025726,1.21529959,2058.8,2058.4,2.51587746]
[1773322025931,1.70384134,2058.8,2058.4,0.0011]
[1773322026134,0.48854175,2058.7,2058.4,0.0011]
[1773322027828,1.21439069,2058.7,2058.6,0.0011]
[1773322028257,0.48854175,2058.6,2058.4,0.0011]
[1773322029132,0.48854175,2058.6,2058.2,0.0011]
[1773322029829,0.48854175,2058.4,2058.2,0.0011]
[1773322030025,0.48854175,2058.4,2057.9,0.0011]
[1773322030232,0.48854175,2058.4,2057.9,1.21592716]
[1773322030428,0.48854175,2058.4,2057.9,0.0011]
[1773322031865,1.21459456,2058.3,2057.9,0.0011]
[1773322032473,0.48854175,2058.2,2057.9,0.0011]
[1773322033266,1.21459456,2058.3,2057.9,0.0011]
[1773322033569,1.21441756,2058.6,2057.9,0.50947068]
[1773322033941,5.34598944,2058.7,2058.0,1.67454908]
[1773322034145,1.70295931,2058.6,2058.0,1.67454908]
[1773322034784,1.21441756,2058.6,2058.0,1.67454908]
[1773322035087,0.48854175,2058.5,2058.0,0.45977746]
[1773322035258,0.48854175,2058.5,2057.9,0.0011]
[1773322035652,0.48854175,2058.3,2057.9,0.0011]
[1773322036156,0.48854175,2058.3,2057.4,0.0011]
[1773322036157,0.48854175,2058.1,2057.4,1.67597676]
[1773322036886,1.21465358,2058.2,2057.5,0.50838013]
[1773322037683,5.34715607,2058.3,2057.5,0.50838013]
[1773322037684,1.70318005,2058.3,2057.5,0.50838013]
[1773322038082,1.70318656,2058.3,2057.7,0.45977746]
[1773322038259,1.21464481,2058.3,2057.8,0.50837304]
[1773322038960,1.21464481,2058.3,2057.8,0.45977746]
[1773322038961,1.70318656,2058.3,2057.8,0.45977746]
[1773322039286,0.48854175,2058.2,2057.6,1.21500777]
[1773322039485,0.48854175,2058.1,2057.5,0.45977746]
[1773322039688,0.48854175,2057.9,2057.4,0.0011]
[1773322040058,1.21488968,2057.8,2057.4,0.0011]
[1773322040970,5.34804089,2057.9,2057.4,0.0011]
[1773322040971,0.48854175,2057.9,2057.4,0.0011]
[1773322041153,1.67389504,2058.1,2057.4,0.45997237]
[1773322041360,1.67389504,2058.1,2057.6,0.45887237]
[1773322042180,0.45918245,2058.0,2057.5,1.21506682]
[1773322042482,0.45918245,2058.0,2057.5,1.26366949]
[1773322042684,0.45918245,2058.0,2057.8,0.0011]
[1773322043011,0.001,2058.1,2057.8,0.0011]
[1773322043179,0.001,2058.1,2057.8,0.50856795]
[1773322044611,0.001,2058.1,2057.8,1.72341954]
[1773322047009,0.001,2058.1,2057.8,0.04969558]
[1773322047190,0.001,2058.1,2057.8,0.0011]
[1773322047593,0.46018245,2058.1,2057.5,0.0011]
[1773322047907,0.46018245,2058.1,2057.5,1.2161595]
[1773322048103,0.46018245,2058.1,2057.5,0.0011]
[1773322048283,0.46018245,2058.1,2057.5,1.21616348]
[1773322048481,0.46018245,2058.1,2057.5,1.67503585]
[1773322048686,0.46018245,2058.1,2057.6,0.45887237]
[1773322048994,0.46018245,2058.1,2057.7,1.26354666]
[1773322049399,0.46018245,2058.1,2057.7,1.21494872]
[1773322049717,0.001,2058.1,2057.7,1.67382109]
[1773322050093,0.001,2058.1,2057.8,0.45887237]
[1773322050294,0.001,2058.1,2057.8,0.50746795]
[1773322051387,0.001,2058.1,2057.8,1.72234271]
[1773322051994,0.001,2058.1,2057.9,0.45887237]
[1773322053518,0.001,2058.1,2057.9,1.67368374]
[1773322053715,6.49807289,2058.7,2057.9,1.67368374]
[1773322053716,1.21441756,2058.6,2058.0,0.45887237]
[1773322054212,1.67360001,2058.6,2058.0,0.45887237]
[1773322054613,1.67360001,2058.6,2058.0,0.45997237]
[1773322054818,0.45918245,2058.5,2058.0,0.45997237]
[1773322055019,0.001,2058.1,2058.0,0.45997237]
[1773322055421,0.001,2058.1,2058.0,0.0011]
[1773322056311,0.001,2058.1,2058.0,0.45997237]
[1773322060328,0.001,2058.1,2058.0,0.0011]
[1773322062527,0.45918245,2058.6,2058.0,0.45997237]
[1773322064303,1.66623197,2058.8,2058.2,0.47809445]
[1773322064802,1.66623197,2058.8,2058.3,1.69268901]
[1773322065507,0.001,2058.8,2058.4,0.47809445]
[1773322065718,1.21530524,2058.8,2058.4,0.47809445]
[1773322067030,1.21530524,2058.8,2058.4,1.69260499]
[1773322067229,1.21530524,2058.8,2058.4,1.21451054]
[1773322067429,0.001,2058.6,2058.5,0.47809445]
[1773322068215,0.001,2058.6,2058.4,1.21451054]
[1773322068434,0.001,2058.6,2058.4,1.69260499]
[1773322070241,0.001,2058.6,2058.3,0.4992979]
[1773322070407,0.001,2058.6,2058.4,0.4992979]
[1773322070734,0.47696955,2058.6,2058.1,0.0011]
[1773322071032,0.47596955,2058.5,2058.1,0.0011]
[1773322072330,1.21453556,2058.4,2058.1,0.0011]
[1773322073039,0.47596955,2058.3,2058.1,0.0011]
[1773322073241,0.47596955,2058.3,2058.0,0.0011]
[1773322074828,0.47596955,2058.2,2058.0,0.0011]
[1773322076937,1.21462534,2058.3,2058.0,0.0011]
[1773322077841,1.69059489,2058.3,2058.0,0.0011]
[1773322080866,1.21462534,2058.3,2058.0,0.0011]
[1773322081025,0.47596955,2058.2,2058.0,0.0011]
[1773322081724,1.21462534,2058.3,2058.0,0.0011]
[1773322082045,0.47596955,2058.4,2058.0,0.0011]
[1773322082248,1.69138896,2058.6,2058.0,0.5003979]
[1773322082451,1.69138896,2058.6,2058.2,0.4992979]
[1773322082651,0.47596955,2058.5,2058.0,0.5003979]
[1773322082952,0.47596955,2058.5,2058.0,0.0011]
[1773322083846,0.47596955,2058.4,2058.0,1.21587162]
[1773322084758,0.47596955,2058.4,2058.0,0.0011]
[1773322084943,0.47596955,2058.4,2058.0,0.5003979]
[1773322085455,1.2145211,2058.5,2058.1,0.5478864]
[1773322085753,1.69141612,2058.6,2058.1,0.5478864]
[1773322086137,1.69141612,2058.6,2058.1,1.76259151]
[1773322087232,1.69141612,2058.6,2058.1,1.26329361]
[1773322087439,0.47596955,2058.5,2058.1,0.0485885]
[1773322088262,0.47596955,2058.3,2058.0,0.0011]
[1773322090360,1.69058237,2058.3,2058.0,0.0011]
[1773322091367,0.47596955,2058.3,2058.0,0.0011]
[1773322092179,1.6905692,2058.3,2058.0,0.0011]
[1773322092745,1.21459965,2058.3,2058.0,0.0011]
[1773322092981,0.47596955,2058.2,2058.0,0.0011]
[1773322093488,0.65596323,2058.5,2058.0,0.0011]
[1773322093489,1.69047616,2058.5,2058.0,0.5003979]
[1773322093639,0.47596955,2058.4,2058.0,0.54898876]
[1773322094352,0.47596955,2058.4,2058.0,0.0011]
[1773322094679,0.47596955,2058.2,2058.0,0.0011]
[1773322095868,1.6905468,2058.4,2058.0,0.5003979]
[1773322096063,1.21457725,2058.4,2058.0,0.0011]
[1773322096280,1.69049155,2058.5,2058.0,0.5003979]
[1773322097086,1.69049155,2058.5,2058.1,1.21471259]
[1773322097269,1.69049155,2058.5,2058.1,1.71401049]
[1773322097441,1.69049155,2058.5,2058.1,0.4992979]
[1773322099142,0.47596955,2058.4,2058.0,0.0011]
[1773322099674,0.47596955,2058.0,2057.6,0.0011]
[1773322099972,0.47596955,2058.2,2057.7,0.4992979]
[1773322100279,0.47596955,2058.2,2057.7,0.54789584]
[1773322100667,1.87046979,2058.5,2057.7,0.54789584]
[1773322100883,0.001,2058.3,2057.7,0.54789584]
[1773322101244,0.001,2058.3,2058.0,0.0011]
[1773322101579,0.47536542,2058.2,2058.0,0.0011]
[1773322103754,0.52395864,2058.1,2057.7,0.0011]
[1773322103950,0.47536542,2058.0,2057.7,0.0011]
[1773322105919,0.47536542,2058.0,2057.4,0.0011]
[1773322105920,0.47536542,2057.8,2057.4,0.0011]
[1773322108457,1.69031414,2057.7,2057.4,0.0011]
[1773322109477,1.13131321,2057.6,2057.1,0.46006085]
[1773322109685,0.47536542,2057.5,2057.1,0.46006085]
[1773322110089,0.47536542,2057.5,2057.1,0.0011]
[1773322110291,0.47536542,2057.5,2057.1,1.67534602]
[1773322110496,0.47536542,2057.6,2057.2,0.04860976]
[1773322110683,0.47536542,2057.6,2057.1,0.0011]
[1773322110684,0.47536542,2057.5,2057.1,0.0011]
[1773322111083,0.47536542,2057.5,2057.1,0.46006085]
[1773322112195,0.47536542,2057.5,2057.1,0.0011]
[1773322112604,1.6904913,2057.4,2057.1,0.0011]
[1773322113297,1.6904913,2057.4,2057.3,0.0011]
[1773322113601,1.6904913,2057.4,2057.1,0.0011]
[1773322114600,0.47536542,2057.3,2057.1,0.0011]
[1773322114776,1.69058378,2057.3,2057.1,0.0011]
[1773322115585,0.47536542,2057.3,2057.1,0.0011]
[1773322115916,4.85971784,2057.8,2057.1,0.46006085]
[1773322115917,1.21500777,2057.6,2057.1,0.46006085]
[1773322116787,1.69037319,2057.6,2057.1,0.46006085]
[1773322116987,1.69037319,2057.6,2057.1,1.67531947]
[1773322117593,1.69037319,2057.6,2057.1,0.46006085]
[1773322117799,0.52395864,2057.5,2057.1,1.67536002]
[1773322118607,0.47536542,2057.5,2057.1,1.67536002]
[1773322122814,0.47536542,2057.5,2057.1,1.21639917]
[1773322123112,1.69043446,2057.5,2057.1,1.21639917]
[1773322123302,0.50568441,2057.4,2057.1,1.21639917]
[1773322124682,0.50568441,2057.4,2057.1,0.0011]
[1773322125809,1.26371914,2057.4,2057.1,0.0011]
[1773322125985,0.45709119,2057.3,2057.1,0.0011]
[1773322126509,0.50568441,2057.2,2057.0,0.0011]
[1773322126718,0.45709119,2057.1,2057.0,0.0011]
[1773322127087,0.45709119,2057.1,2056.6,2.4112882]
[1773322127308,0.45709119,2057.1,2056.6,3.62688387]
[1773322127687,0.45709119,2057.1,2056.6,2.4112882]
[1773322128103,0.45709119,2057.1,2056.6,3.62688326]
[1773322129208,0.45709119,2056.9,2056.6,3.62688326]
[1773322129388,0.45709119,2057.0,2056.6,4.08100749]
[1773322129905,0.45709119,2057.0,2056.6,3.62688326]
[1773322130108,0.45709119,2057.0,2056.6,2.4112882]
[1773322130305,0.45709119,2057.0,2056.6,0.3582882]
[1773322131301,0.49492625,2056.8,2056.6,0.3582882]
[1773322132117,1.71033246,2057.0,2056.6,0.3582882]
[1773322133926,0.49492625,2056.9,2056.6,0.3582882]
[1773322134825,0.04859322,2057.0,2056.7,0.47019601]
[1773322135131,0.001,2057.2,2056.9,0.47019601]
[1773322135809,0.001,2057.2,2057.0,1.68555818]
[1773322141455,0.49592625,2057.2,2056.9,3.27036571]
[1773322141954,0.001,2057.2,2057.0,0.47019601]
[1773322142316,0.001,2057.2,2057.1,1.21530309]
[1773322142531,0.001,2057.2,2056.9,3.31899458]
[1773322142724,0.001,2057.2,2056.9,3.78919059]
[1773322143937,0.49592625,2057.2,2056.9,3.31899458]
[1773322144110,0.49592625,2057.2,2056.9,2.055]
[1773322144310,0.49592625,2057.2,2056.9,3.27041389]
[1773322148049,0.001,2057.2,2056.9,3.7406099]
[1773322150545,0.001,2057.2,2056.9,3.27041389]
[1773322150852,1.70988662,2057.7,2057.1,0.47019601]
[1773322151152,0.49492625,2057.6,2057.1,0.47019601]
[1773322151649,0.49492625,2057.8,2057.3,0.47019601]
[1773322152026,0.49492625,2057.8,2057.4,2.06]
[1773322152734,0.49492625,2057.8,2057.4,2.53019601]
[1773322153250,1.21481767,2058.0,2057.4,2.06]
[1773322153455,1.21481767,2058.0,2057.5,1.68521687]
[1773322153755,0.49492625,2057.9,2057.5,1.68525091]
[1773322154054,0.49492625,2057.9,2057.4,3.27511433]
[1773322154425,0.49492625,2057.9,2057.4,2.06]
[1773322154625,0.49492625,2057.8,2057.4,2.06]
[1773322154926,0.49492625,2057.8,2057.1,0.47129601]
[1773322155128,0.49492625,2057.6,2057.1,3.27739603]
[1773322155338,0.49492625,2057.6,2057.1,0.0011]
[1773322155550,0.49492625,2057.4,2057.0,2.061]
[1773322156245,0.49492625,2057.4,2057.0,1.2153576]
[1773322156425,0.49492625,2057.4,2057.0,1.21536068]
[1773322157342,0.49492625,2057.4,2056.9,3.74867439]
[1773322157659,1.71010745,2057.4,2056.9,3.74867439]
[1773322158560,0.49492625,2057.2,2056.9,1.95967364]
[1773322158789,0.49492625,2057.0,2056.8,0.0011]
[1773322161650,0.47259079,2057.2,2056.8,0.0011]
[1773322162367,1.68789388,2057.1,2056.8,0.0011]